bitfinex-derivatives/quotes_BNBF0:USTF0_20251203
["timestamp","ask_amount","ask_price","bid_price","bid_amount"]
[1764785622414,0.19144863,909.56,908.11,0.72949882]
[1764785622617,0.19144863,909.56,908.12,0.72949882]
[1764785622818,0.19144863,909.56,908.13,0.72949882]
[1764785623018,0.19144863,909.56,908.14,0.72949882]
[1764785623215,0.19144863,909.56,908.15,0.72949882]
[1764785623520,0.19144863,909.56,908.16,0.72949882]
[1764785623819,0.19144863,909.56,908.17,0.72949882]
[1764785624018,0.19144863,909.56,908.18,0.72949882]
[1764785624218,0.19144863,909.56,908.19,0.72949882]
[1764785624515,0.19144863,909.56,908.2,0.72949882]
[1764785624715,0.19144863,909.56,908.21,0.72949882]
[1764785624915,0.19144863,909.56,908.22,0.72949882]
[1764785625118,0.19144863,909.56,908.23,0.72949882]
[1764785625320,0.19144863,909.56,908.24,0.72949882]
[1764785625520,0.19144863,909.56,908.25,0.72949882]
[1764785625720,0.19144863,909.56,908.26,0.72949882]
[1764785625917,0.19144863,909.56,908.27,0.72949882]
[1764785626118,0.19144863,909.56,908.28,0.72949882]
[1764785626322,0.19144863,909.56,908.29,0.72949882]
[1764785626522,0.19144863,909.56,908.3,0.72949882]
[1764785626821,0.19144863,909.56,908.31,0.72949882]
[1764785627122,0.19144863,909.56,908.32,0.72949882]
[1764785627322,0.19144863,909.56,908.33,0.72949882]
[1764785627519,0.19144863,909.56,908.34,0.72949882]
[1764785627819,0.19144863,909.56,908.35,0.72949882]
[1764785628017,0.19144863,909.56,908.36,0.72949882]
[1764785628224,0.19144863,909.56,908.37,0.72949882]
[1764785628422,0.19144863,909.56,908.32,1.967]
[1764785628620,0.19144863,909.56,908.33,0.72922121]
[1764785628923,0.19144863,909.56,908.34,0.72922121]
[1764785629123,0.19144863,909.56,908.35,0.72922121]
[1764785629424,0.19144863,909.56,908.32,1.967]
[1764785629619,0.19144863,909.56,908.33,0.72922709]
[1764785629824,0.19144863,909.56,908.34,0.72922709]
[1764785630020,0.19144863,909.56,908.35,0.72922709]
[1764785630324,0.19144863,909.56,908.32,1.967]
[1764785645734,2.75553825,909.49,908.32,1.967]
[1764785646139,2.75553825,909.48,908.32,1.967]
[1764785646438,2.75553825,909.48,907.51,0.80825436]
[1764785646635,2.75553825,909.48,906.87,0.80825436]
[1764785646832,0.19144863,909.56,906.88,0.72404085]
[1764785646833,2.75553825,908.78,906.88,0.72404085]
[1764785647035,2.75553825,908.78,906.89,0.72404085]
[1764785647237,2.75553825,908.85,906.9,0.72404085]
[1764785647435,2.75553825,908.85,906.91,0.72404085]
[1764785647639,2.75553825,908.85,906.92,0.72404085]
[1764785647937,2.75553825,908.85,906.93,0.72404085]
[1764785648140,2.75553825,908.85,906.94,0.72404085]
[1764785648337,2.75553825,908.84,906.95,0.72404085]
[1764785648536,2.75553825,908.84,906.75,0.1916289]
[1764785648840,2.75553825,908.84,906.76,0.70144157]
[1764785649036,2.75553825,908.84,906.77,0.70144157]
[1764785649239,2.75553825,908.84,906.78,0.70144157]
[1764785649437,2.75553825,908.85,906.79,0.70144157]
[1764785649638,2.75553825,908.85,906.8,0.70144157]
[1764785649841,2.75553825,908.85,906.81,0.70144157]
[1764785650042,2.75553825,908.85,906.8,2.231]
[1764785650440,2.75553825,908.81,906.8,2.231]
[1764785650842,2.75553825,908.76,906.8,2.231]
[1764785651335,2.75553825,908.83,906.8,2.231]
[1764785652441,2.75553825,908.9,906.8,2.231]
[1764785653543,2.75553825,908.95,906.8,2.231]
[1764785654438,2.75553825,909.01,906.8,2.231]
[1764785655542,2.75553825,909.07,906.8,2.231]
[1764785656538,2.75553825,909.18,906.8,2.231]
[1764785657542,2.75553825,909.22,906.8,2.231]
[1764785658643,2.75553825,909.25,906.8,2.231]
[1764785659241,2.75553825,909.28,906.8,2.231]
[1764785659645,2.75553825,909.3,906.8,2.231]
[1764785660145,2.75553825,909.33,906.8,2.231]
[1764785660745,2.75553825,909.35,906.8,2.231]
[1764785661146,2.75553825,909.37,906.8,2.231]
[1764785661747,2.75553825,909.23,906.8,2.231]
[1764785662247,2.75553825,909.25,906.8,2.231]
[1764785662748,2.75553825,909.26,906.8,2.231]
[1764785663347,2.75553825,909.28,906.8,2.231]
[1764785663744,2.75553825,909.29,906.8,2.231]
[1764785664448,2.75553825,909.31,906.8,2.231]
[1764785664845,2.75553825,909.3,906.8,2.231]
[1764785665443,2.75553825,909.23,906.8,2.231]
[1764785666348,2.75553825,909.26,906.8,2.231]
[1764785667444,2.75553825,909.28,906.8,2.231]
[1764785667949,2.75553825,909.28,906.76,1.794]
[1764785668349,2.75553825,909.31,906.76,1.794]
[1764785669545,2.75553825,909.33,906.76,1.794]
[1764785670551,2.75553825,909.35,906.76,1.794]
[1764785671652,0.19144863,909.56,906.76,1.794]
[1764785671653,2.75553825,909.34,906.77,2.419]
[1764785672551,2.75553825,909.35,906.77,2.419]
[1764785673658,2.75553825,909.37,906.77,2.419]
[1764785674251,2.75553825,909.29,906.77,2.419]
[1764785674751,2.75553825,909.3,906.77,2.419]
[1764785675856,2.75553825,909.27,906.77,2.419]
[1764785676154,2.75553825,909.28,906.77,2.419]
[1764785676755,2.75553825,909.27,906.77,2.419]
[1764785677252,2.75553825,909.28,906.77,2.419]
[1764785677752,2.75553825,909.27,906.77,2.419]
[1764785678154,0.19144863,909.56,906.77,2.419]
[1764785678155,2.75553825,909.28,906.77,2.419]
[1764785678657,2.75553825,909.26,906.77,2.419]
[1764785679852,2.75553825,909.18,906.78,1.97]
[1764785680755,2.75553825,909.17,906.78,1.97]
[1764785681353,2.75553825,909.18,906.78,1.97]
[1764785681856,2.75553825,908.95,906.78,1.97]
[1764785682357,2.75553825,908.94,906.78,1.97]
[1764785683358,2.75553825,908.92,906.78,1.97]
[1764785684462,2.75553825,908.9,906.78,1.97]
[1764785685358,2.75553825,908.88,906.78,1.97]
[1764785686457,2.75553825,908.85,906.78,1.97]
[1764785687462,2.75553825,908.82,906.78,1.97]
[1764785688462,2.75553825,908.79,906.78,1.97]
[1764785689562,2.75553825,908.75,906.78,1.97]
[1764785690660,3.85775356,909.08,906.78,1.97]
[1764785690661,2.75553825,908.71,906.78,1.97]
[1764785691564,2.75553825,908.88,906.78,1.97]
[1764785692565,2.75553825,908.85,906.78,1.97]
[1764785693767,2.75553825,908.82,906.78,1.97]
[1764785694667,2.75553825,908.78,906.78,1.97]
[1764785695869,2.75553825,908.75,906.78,1.97]
[1764785696868,2.75553825,908.72,906.78,1.97]
[1764785697369,2.75553825,908.71,906.78,1.97]
[1764785697869,2.75553825,908.68,906.78,1.97]
[1764785698269,2.75553825,908.63,906.78,1.97]
[1764785698665,1.63151027,907.98,906.78,1.97]
[1764785699069,1.63151027,907.97,906.78,1.97]
[1764785699365,1.63151027,907.92,906.78,1.97]
[1764785700669,1.63151027,907.91,906.78,1.97]
[1764785700967,1.63151027,907.85,906.78,1.97]
[1764785701165,1.63151027,907.84,906.78,1.97]
[1764785701572,1.63151027,907.9,906.78,1.97]
[1764785701967,1.63151027,907.81,906.78,1.97]
[1764785702168,1.63151027,907.73,906.78,1.97]
[1764785702372,1.63151027,907.67,906.78,1.97]
[1764785703175,1.63151027,907.6,906.78,1.97]
[1764785704073,1.63151027,907.46,906.78,1.97]
[1764785704273,1.63151027,907.4,906.78,1.97]
[1764785705077,1.63151027,907.3,906.78,1.97]
[1764785705275,1.63151027,907.31,906.78,1.97]
[1764785706176,1.63151027,907.24,906.78,1.97]
[1764785706377,1.63151027,907.25,906.78,1.97]
[1764785706573,1.63151027,907.28,906.78,1.97]
[1764785707176,1.63151027,907.25,906.78,1.97]
[1764785707373,1.63151027,907.26,906.78,1.97]
[1764785707980,1.63151027,907.25,906.78,1.97]
[1764785708177,1.63151027,907.24,906.78,1.97]
[1764785708580,1.63151027,907.25,906.78,1.97]
[1764785709177,1.63151027,907.24,906.78,1.97]
[1764785710377,1.63151027,907.25,906.78,1.97]
[1764785711078,1.63151027,907.24,906.78,1.97]
[1764785711375,1.63151027,907.35,906.78,1.97]
[1764785712380,1.63151027,907.36,906.78,1.97]
[1764785719286,1.63151027,907.35,906.78,1.97]
[1764785719583,1.63151027,907.36,906.78,1.97]
[1764785720187,0.19187138,907.22,906.78,1.97]
[1764785720385,1.63151027,907.35,906.78,1.97]
[1764785721187,1.63151027,907.34,906.78,1.97]
[1764785721388,1.63151027,907.31,906.78,1.97]
[1764785721783,0.19187244,907.21,906.78,1.97]
[1764785721987,0.19187244,907.21,906.73,2.017]
[1764785724885,0.19187244,907.21,906.74,2.126]
[1764785730292,1.63151027,907.36,906.74,2.126]
[1764785730693,0.19186609,907.1,906.74,2.126]
[1764785730993,1.63151027,907.34,906.74,2.126]
[1764785731391,1.63151027,907.21,906.74,2.126]
[1764785732092,0.19187826,907.1,906.74,2.126]
[1764785743602,1.63151027,907.08,906.74,2.126]
[1764785744005,0.19187826,907.1,906.74,2.126]
[1764785746608,1.63151027,906.84,906.74,2.126]
[1764785746807,1.63151027,906.85,906.74,2.126]
[1764785747508,1.63151027,906.87,906.74,2.126]
[1764785748208,1.63151027,907.05,906.74,2.126]
[1764785748412,1.63151027,907.06,906.74,2.126]
[1764785750714,1.63151027,907.01,906.74,2.126]
[1764785751416,1.63151027,907.0,906.74,2.126]
[1764785751616,1.63151027,907.02,906.74,2.126]
[1764785752412,1.63151027,907.04,906.74,2.126]
[1764785753119,1.63151027,907.04,906.75,2.254]
[1764785756114,1.63151027,907.03,906.75,2.254]
[1764785756414,1.63151027,907.04,906.75,2.254]
[1764785756714,1.63151027,907.0,906.75,2.254]
[1764785757113,1.63151027,906.99,906.75,2.254]
[1764785758716,1.63151027,906.98,906.75,2.254]
[1764785758919,1.63151027,906.99,906.75,2.254]
[1764785759114,1.63151027,907.01,906.75,2.254]
[1764785759317,1.63151027,907.0,906.75,2.254]
[1764785761419,1.63151027,906.94,906.75,2.254]
[1764785764322,1.63151027,906.95,906.75,2.254]
[1764785764522,1.63151027,906.99,906.75,2.254]
[1764785764925,1.63151027,906.98,906.75,2.254]
[1764785765422,1.63151027,906.99,906.75,2.254]
[1764785767129,1.63151027,906.98,906.75,2.254]
[1764785768532,1.63151027,907.01,906.75,2.254]
[1764785769830,1.63151027,907.0,906.75,2.254]
[1764785770229,1.63151027,906.99,906.75,2.254]
[1764785770430,1.63151027,907.0,906.75,2.254]
[1764785770931,1.63151027,907.02,906.75,2.254]
[1764785771433,1.63151027,907.06,906.75,2.254]
[1764785771629,0.19187826,907.1,906.75,2.254]
[1764785774034,1.63151027,907.04,906.75,2.254]
[1764785774234,1.63151027,907.02,906.75,2.254]
[1764785774733,1.63151027,907.04,906.75,2.254]
[1764785776537,1.63151027,907.02,906.75,2.254]
[1764785779437,0.19187826,907.1,906.75,2.254]
[1764785779438,1.63151027,907.0,906.75,2.254]
[1764785780139,0.19187826,907.1,906.75,2.254]
[1764785780140,1.63151027,906.99,906.75,2.254]
[1764785780534,1.63151027,906.97,906.75,2.254]
[1764785781135,1.63151027,906.98,906.75,2.254]
[1764785781434,1.63151027,906.88,906.75,2.254]
[1764785783042,1.63151027,906.87,906.75,2.254]
[1764785784037,2.75553825,907.52,906.75,2.254]
[1764785784436,2.75553825,907.38,906.75,2.254]
[1764785784939,2.75553825,907.37,906.75,2.254]
[1764785785435,2.75553825,907.33,906.75,2.254]
[1764785786140,0.19193382,907.19,906.75,2.254]
[1764785788543,0.19193382,907.19,906.75,0.42228246]
[1764785788742,0.19193382,907.19,906.75,0.07838867]
[1764785789037,2.75553825,907.01,906.75,0.07838867]
[1764785789536,2.75553825,907.03,906.75,0.07838867]
[1764785790040,2.75553825,907.02,906.75,0.07838867]
[1764785790442,2.75553825,907.03,906.75,0.07838867]
[1764785791544,2.75553825,907.06,906.75,0.07838867]
[1764785792539,2.75553825,907.09,906.75,0.07838867]
[1764785793643,2.94747207,907.19,906.75,0.07838867]
[1764785794243,2.75553825,907.16,906.75,0.07838867]
[1764785794639,2.75553825,907.12,906.75,0.07838867]
[1764785795744,2.75553825,907.13,906.75,0.07838867]
[1764785796642,2.75553825,907.16,906.75,0.07838867]
[1764785797647,2.75553825,907.18,906.75,0.07838867]
[1764785798243,0.19193382,907.19,906.75,0.07838867]
[1764785798547,0.19193382,907.19,906.75,0.01765291]
[1764785800149,0.19193382,907.19,905.93,2.058]
[1764785801846,2.75553825,907.1,905.93,2.058]
[1764785802346,2.75553825,907.11,905.93,2.058]
[1764785803948,2.75553825,906.68,905.93,2.058]
[1764785804352,2.75553825,906.58,905.93,2.058]
[1764785804953,2.75553825,906.52,905.93,2.058]
[1764785806048,2.75553825,906.41,905.93,1.86583461]
[1764785806448,2.75553825,906.33,905.02,0.0091666]
[1764785806652,2.75553825,906.33,903.52,0.80825436]
[1764785806954,2.75553825,906.13,903.82,8.61202959]
[1764785807149,2.75553825,906.13,903.83,0.71860626]
[1764785807446,2.75553825,906.38,903.84,0.71844027]
[1764785807649,2.75553825,906.38,903.85,0.71844027]
[1764785807853,2.75553825,906.38,903.86,0.71844027]
[1764785808053,2.75553825,906.51,903.87,0.71844027]
[1764785808253,2.75553825,906.51,903.88,0.71844027]
[1764785808549,2.75553825,906.54,903.89,0.71844027]
[1764785808850,2.75553825,906.54,903.9,2.78744027]
[1764785809154,0.19226094,905.88,903.91,0.71844027]
[1764785809353,0.19226094,905.88,903.92,0.71844027]
[1764785809551,0.19226094,905.88,903.9,2.069]
[1764785809552,0.19226094,905.88,903.93,0.71844027]
[1764785809754,0.19226094,905.88,903.94,0.71844027]
[1764785809955,0.19226094,905.88,903.95,0.71844027]
[1764785810155,0.19226094,905.88,903.96,0.71844027]
[1764785810454,0.19226094,905.88,903.97,2.57244027]
[1764785810651,0.19226094,905.88,903.98,0.71844027]
[1764785810951,0.19226094,905.88,903.99,0.71844027]
[1764785811154,0.19226094,905.88,904.0,0.71844027]
[1764785811355,0.19226094,905.88,904.01,0.71844027]
[1764785811555,0.19226094,905.88,904.02,0.71844027]
[1764785811850,0.19226094,905.88,904.03,0.71844027]
[1764785812056,0.19226094,905.88,904.04,0.71844027]
[1764785812349,0.19226094,905.88,904.12,0.80825436]
[1764785812549,0.19226094,905.88,904.13,0.71844027]
[1764785812755,0.19226094,905.88,904.14,0.71844027]
[1764785812954,0.19226094,905.88,904.15,0.71844027]
[1764785813153,0.19226094,905.88,904.16,0.71844027]
[1764785813357,0.19226094,905.88,903.97,1.854]
[1764785813358,0.19226094,905.88,904.17,0.71844027]
[1764785813654,0.19226094,905.88,904.18,0.71844027]
[1764785813858,0.19226094,905.88,904.19,0.71844027]
[1764785814059,0.19226094,905.88,904.2,0.71844027]
[1764785814260,0.19226094,905.88,904.21,0.71844027]
[1764785814554,0.19226094,905.88,904.22,0.71844027]
[1764785814753,0.19226094,905.88,904.23,0.71844027]
[1764785815058,0.19226094,905.88,904.24,0.71844027]
[1764785815257,0.19226094,905.88,904.25,0.71844027]
[1764785815459,0.19226094,905.88,904.1,0.80825436]
[1764785815460,0.19226094,905.88,904.26,0.71844027]
[1764785815660,0.19226094,905.88,904.27,0.71844027]
[1764785815960,0.19226094,905.88,904.28,0.71844027]
[1764785816259,0.19226094,905.88,904.29,0.71844027]
[1764785816459,0.19226094,905.88,904.3,0.71844027]
[1764785816659,0.19226094,905.88,904.31,0.71844027]
[1764785816859,0.19226094,905.88,904.32,0.71844027]
[1764785817057,0.19226094,905.88,904.33,0.71844027]
[1764785817359,0.19226094,905.88,904.04,0.80825436]
[1764785817559,0.19226094,905.88,904.05,0.71313678]
[1764785817757,0.19226094,905.88,904.06,0.71313678]
[1764785818060,0.19226094,905.88,904.07,0.71313678]
[1764785818257,0.19226094,905.88,904.08,0.71313678]
[1764785818456,0.19226094,905.88,904.09,0.71313678]
[1764785818661,0.19226094,905.88,904.1,0.71313678]
[1764785818856,0.19226094,905.88,903.97,1.854]
[1764785818857,0.19226094,905.88,904.11,0.71313678]
[1764785819061,0.19226094,905.88,904.12,0.71313678]
[1764785819362,0.19226094,905.88,904.13,0.71313678]
[1764785819661,0.19226094,905.88,904.14,0.71313678]
[1764785819861,0.19226094,905.88,904.15,0.71313678]
[1764785820157,0.19226094,905.88,904.16,0.71313678]
[1764785820362,0.19226094,905.88,904.17,0.71313678]
[1764785820562,0.19226094,905.88,903.97,1.854]
[1764785820762,0.19226094,905.88,903.98,0.70691916]
[1764785820959,0.19226094,905.88,903.99,0.70691916]
[1764785821163,0.19226094,905.88,904.0,0.70691916]
[1764785821364,0.19226094,905.88,904.01,0.70691916]
[1764785821664,0.19226094,905.88,904.02,0.70691916]
[1764785821869,0.19226094,905.88,904.03,0.70691916]
[1764785822062,0.19226094,905.88,904.04,0.70691916]
[1764785822362,0.19226094,905.88,904.05,1.51517352]
[1764785822561,0.19226094,905.88,904.06,0.70691916]
[1764785822764,0.19226094,905.88,904.07,0.70691916]
[1764785822964,0.19226094,905.88,904.08,0.70691916]
[1764785823165,0.19226094,905.88,904.09,0.70691916]
[1764785823465,0.19226094,905.88,904.1,0.70691916]
[1764785823767,0.19226094,905.88,904.11,0.70691916]
[1764785824064,0.19226094,905.88,904.12,0.70691916]
[1764785824265,0.19226094,905.88,904.13,0.70691916]
[1764785824463,0.19226094,905.88,904.14,0.70691916]
[1764785824666,0.19226094,905.88,904.15,0.70691916]
[1764785824866,0.19226094,905.88,904.16,0.70691916]
[1764785825064,0.19226094,905.88,904.17,0.70691916]
[1764785825268,0.19226094,905.88,904.18,0.70691916]
[1764785825469,0.19226094,905.88,904.19,0.70691916]
[1764785825664,0.19226094,905.88,904.2,0.70691916]
[1764785825963,0.19226094,905.88,904.21,0.70691916]
[1764785826165,0.19226094,905.88,904.22,0.70691916]
[1764785826365,0.19226094,905.88,904.23,0.70691916]
[1764785826564,0.19226094,905.88,904.24,0.70691916]
[1764785826765,0.19226094,905.88,904.15,1.501]
[1764785826969,0.19226094,905.88,904.16,0.7064403]
[1764785827169,0.19226094,905.88,904.17,0.7064403]
[1764785827470,0.19226094,905.88,904.18,0.7064403]
[1764785827666,0.19226094,905.88,904.19,0.7064403]
[1764785827868,0.19226094,905.88,904.2,0.7064403]
[1764785828069,0.19226094,905.88,904.15,1.501]
[1764785828070,0.19226094,905.88,904.21,0.7064403]
[1764785828265,0.19226094,905.88,904.22,0.7064403]
[1764785828466,0.19226094,905.88,904.23,0.7064403]
[1764785828666,0.19226094,905.88,904.24,0.7064403]
[1764785828865,0.19226094,905.88,904.25,0.7064403]
[1764785829069,0.19226094,905.88,904.26,0.7064403]
[1764785829271,0.19226094,905.88,904.27,0.7064403]
[1764785829472,0.19226094,905.88,904.28,0.7064403]
[1764785829668,0.19226094,905.88,904.29,0.7064403]
[1764785829972,0.19226094,905.88,904.3,0.7064403]
[1764785830172,0.19226094,905.88,904.31,0.7064403]
[1764785830374,0.19226094,905.88,904.15,1.501]
[1764785830575,0.19226094,905.88,904.16,0.7065969]
[1764785830771,0.19226094,905.88,904.17,0.7065969]
[1764785830973,0.19226094,905.88,904.18,0.7065969]
[1764785831176,0.19226094,905.88,904.19,0.7065969]
[1764785831476,0.19226094,905.88,904.2,0.7065969]
[1764785831673,0.19226094,905.88,904.21,0.7065969]
[1764785831877,0.19226094,905.88,904.22,0.7065969]
[1764785832077,0.19226094,905.88,904.23,0.7065969]
[1764785832277,0.19226094,905.88,904.24,0.7065969]
[1764785832479,0.19226094,905.88,904.25,0.7065969]
[1764785832677,0.19226094,905.88,904.26,0.7065969]
[1764785832873,0.19226094,905.88,904.27,0.7065969]
[1764785833079,0.19226094,905.88,904.28,0.7065969]
[1764785833277,0.19226094,905.88,904.15,1.501]
[1764785833578,0.19226094,905.88,904.16,0.70759116]
[1764785833782,0.19226094,905.88,904.17,0.70759116]
[1764785834078,0.19226094,905.88,904.18,0.70759116]
[1764785834281,0.19226094,905.88,904.19,0.70759116]
[1764785834482,0.19226094,905.88,904.2,0.70759116]
[1764785834675,0.19226094,905.88,904.21,0.70759116]
[1764785834879,0.19226094,905.88,904.22,0.70759116]
[1764785835077,0.19226094,905.88,904.23,0.70759116]
[1764785835278,0.19226094,905.88,904.24,0.70759116]
[1764785835477,0.19226094,905.88,904.25,0.70759116]
[1764785835677,0.19226094,905.88,904.26,0.70759116]
[1764785835878,0.19226094,905.88,904.15,1.501]
[1764785836182,0.19226094,905.88,904.16,0.70804992]
[1764785836380,0.19226094,905.88,904.17,0.70804992]
[1764785836583,0.19226094,905.88,904.18,0.70804992]
[1764785836779,0.19226094,905.88,904.19,0.70804992]
[1764785836984,0.19226094,905.88,904.2,0.70804992]
[1764785837181,0.19226094,905.88,904.21,0.70804992]
[1764785837386,0.19226094,905.88,904.22,0.70804992]
[1764785837586,0.19226094,905.88,904.15,1.501]
[1764785837786,0.19226094,905.88,904.16,0.70861348]
[1764785837985,0.19226094,905.88,904.17,0.70861348]
[1764785838187,0.19226094,905.88,904.18,0.70861348]
[1764785838487,0.19226094,905.88,904.19,0.70861348]
[1764785838685,0.19226094,905.88,904.2,0.70861348]
[1764785838888,0.19226094,905.88,904.21,0.70861348]
[1764785839088,0.19226094,905.88,904.22,0.70861348]
[1764785839284,0.19226094,905.88,904.23,0.7091969]
[1764785839483,0.19226094,905.88,904.15,1.501]
[1764785839689,0.19226094,905.88,904.16,0.70919336]
[1764785839989,0.19226094,905.88,904.17,0.70919336]
[1764785840285,0.19226094,905.88,904.18,0.70919336]
[1764785840490,0.19226094,905.88,904.19,0.70919336]
[1764785840690,0.19226094,905.88,904.2,0.70919336]
[1764785840890,0.19226094,905.88,904.21,0.70919336]
[1764785841191,0.19226094,905.88,904.22,0.70919336]
[1764785841492,0.19226094,905.88,904.23,0.70919336]
[1764785841694,0.19226094,905.88,903.97,1.854]
[1764785841889,0.19226094,905.88,903.98,0.70988672]
[1764785842091,0.19226094,905.88,903.99,0.70988672]
[1764785842390,0.19226094,905.88,904.0,0.70988672]
[1764785842692,0.19226094,905.88,904.01,0.70988672]
[1764785842888,0.19226094,905.88,904.02,0.70988672]
[1764785843086,0.19226094,905.88,904.03,0.70988672]
[1764785843289,0.19226094,905.88,904.04,0.70988672]
[1764785843493,0.19226094,905.88,904.05,0.70988672]
[1764785843693,0.19226094,905.88,904.06,0.70988672]
[1764785843989,0.19226094,905.88,904.07,0.70988672]
[1764785844189,0.19226094,905.88,904.08,0.70988672]
[1764785844390,0.19226094,905.88,904.09,0.70988672]
[1764785844594,0.19226094,905.88,904.1,0.70988672]
[1764785844791,0.19226094,905.88,904.11,0.70988672]
[1764785844991,0.19226094,905.88,904.12,0.70988672]
[1764785845192,0.19226094,905.88,904.13,0.70988672]
[1764785845489,0.19226094,905.88,904.14,0.70988672]
[1764785845688,0.19226094,905.88,904.15,0.70988672]
[1764785845888,0.19226094,905.88,904.16,0.70988672]
[1764785846189,0.19226094,905.88,904.17,0.70988672]
[1764785846492,0.19226094,905.88,904.18,0.70988672]
[1764785846688,0.19226094,905.88,904.19,0.70988672]
[1764785846890,0.19226094,905.88,904.2,0.70988672]
[1764785847090,0.19226094,905.88,904.21,0.70988672]
[1764785847290,0.19226094,905.88,904.22,0.70988672]
[1764785847489,0.19226094,905.88,904.23,0.70988672]
[1764785847690,0.19226094,905.88,904.24,0.70988672]
[1764785847892,0.19226094,905.88,904.25,0.70988672]
[1764785848092,0.19226094,905.88,904.26,0.70988672]
[1764785848392,0.19226094,905.88,904.27,0.70988672]
[1764785848593,0.19226094,905.88,904.28,0.70988672]
[1764785848795,0.19226094,905.88,904.29,0.70988672]
[1764785848991,0.19226094,905.88,904.3,0.70988672]
[1764785849191,0.19226094,905.88,904.31,0.70988672]
[1764785849397,0.19226094,905.88,904.32,0.70988672]
[1764785849592,0.19226094,905.88,904.33,0.70988672]
[1764785849798,0.19226094,905.88,904.34,0.70988672]
[1764785849993,0.19226094,905.88,904.35,0.70988672]
[1764785850192,0.19226094,905.88,904.36,0.70988672]
[1764785850392,0.19226094,905.88,904.37,0.70988672]
[1764785850696,0.19226094,905.88,904.38,0.70988672]
[1764785850895,0.19226094,905.88,904.39,0.70988672]
[1764785851196,0.19226094,905.88,904.4,0.70988672]
[1764785851397,0.19226094,905.88,904.41,0.70988672]
[1764785851693,0.19226094,905.88,904.42,0.70988672]
[1764785851896,0.19226094,905.88,904.43,0.70988672]
[1764785852098,0.19226094,905.88,904.44,0.70988672]
[1764785852398,0.19226094,905.88,904.45,0.70988672]
[1764785852592,0.19226094,905.88,904.46,0.70988672]
[1764785852891,0.19226094,905.88,904.47,0.70988672]
[1764785853096,0.19226094,905.88,904.48,0.70988672]
[1764785853297,0.19226094,905.88,904.49,0.70988672]
[1764785853492,0.19226094,905.88,904.5,0.70988672]
[1764785853695,0.19226094,905.88,904.51,0.70988672]
[1764785853895,0.19226094,905.88,904.7,0.80825436]
[1764785854096,0.19226094,905.88,904.71,0.70988672]
[1764785854294,0.19226094,905.88,904.72,0.70988672]
[1764785854494,0.19226094,905.88,904.73,0.70988672]
[1764785854693,0.19226094,905.88,904.74,0.70988672]
[1764785854897,0.19226094,905.88,904.75,0.70988672]
[1764785855096,0.19226094,905.88,904.76,0.70988672]
[1764785855400,0.19226094,905.88,904.77,0.70988672]
[1764785855599,0.19226094,905.88,904.01,2.218]
[1764785855600,0.19226094,905.88,904.78,0.70988672]
[1764785855899,0.19226094,905.88,904.79,0.70988672]
[1764785856096,0.19226094,905.88,904.8,0.70988672]
[1764785856295,0.19226094,905.88,904.81,0.70988672]
[1764785856500,0.19226094,905.88,904.82,0.70988672]
[1764785856700,0.19226094,905.88,904.83,0.70988672]
[1764785856900,0.19226094,905.88,904.84,0.70988672]
[1764785857196,0.19226094,905.88,904.01,2.218]
[1764785857197,0.19226094,905.88,904.85,0.70988672]
[1764785857401,0.19226094,905.88,904.86,0.70988672]
[1764785857600,0.19226094,905.88,904.76,0.80825436]
[1764785857601,0.19226094,905.88,904.87,0.70988672]
[1764785857900,0.19226094,905.88,904.88,0.70988672]
[1764785858098,0.19226094,905.88,904.89,0.70988672]
[1764785858297,0.19226094,905.88,904.9,0.70988672]
[1764785858495,0.19226094,905.88,904.91,0.70988672]
[1764785858699,0.19226094,905.88,904.92,0.70988672]
[1764785858999,0.19226094,905.88,904.93,0.70988672]
[1764785859200,0.19226094,905.88,904.94,0.70988672]
[1764785859397,0.19226094,905.88,904.95,0.70988672]
[1764785859597,0.19226094,905.88,904.96,0.70988672]
[1764785859797,0.19226094,905.88,904.97,0.70988672]
[1764785860101,0.19226094,905.88,904.98,0.70988672]
[1764785860301,0.19226094,905.88,904.99,0.70988672]
[1764785860500,0.19226094,905.88,905.0,0.70988672]
[1764785860701,0.19226094,905.88,905.01,0.70988672]
[1764785860901,0.19226094,905.88,905.02,0.70988672]
[1764785861096,0.19226094,905.88,905.03,0.70988672]
[1764785861301,0.19226094,905.88,905.04,0.70988672]
[1764785861598,0.19226094,905.88,905.05,0.70988672]
[1764785861802,0.19226094,905.88,905.06,0.70988672]
[1764785861999,0.19226094,905.88,905.07,0.70988672]
[1764785862199,0.19226094,905.88,905.08,0.70988672]
[1764785862398,0.19226094,905.88,905.09,0.70988672]
[1764785862702,0.19226094,905.88,905.1,0.70988672]